bitfinex-derivatives/quotes_BNBF0:USTF0_20250708
["timestamp","ask_amount","ask_price","bid_price","bid_amount"]
[1751997184620,3.40221711,661.6,660.82,1.68970976]
[1751997185325,3.40221711,661.61,660.83,1.68970976]
[1751997186527,3.40221711,661.6,660.83,1.68970976]
[1751997186728,3.40221711,661.59,660.84,1.68970976]
[1751997187028,3.40221711,661.58,660.83,1.68970976]
[1751997187228,3.40221711,661.58,660.84,1.68970976]
[1751997187429,3.40221711,661.58,660.83,1.68970976]
[1751997188530,3.40221711,661.61,660.84,1.68970976]
[1751997188730,3.40221711,661.63,660.85,1.68970976]
[1751997189532,3.40221711,661.62,660.86,1.68970976]
[1751997189731,3.40221711,661.64,660.88,1.68970976]
[1751997194531,3.40221711,661.63,660.88,1.68970976]
[1751997195432,3.40221711,661.64,660.88,1.68970976]
[1751997196234,3.40221711,661.65,660.88,1.68970976]
[1751997196631,3.40221711,661.62,660.88,1.68970976]
[1751997196836,2.26421435,661.49,660.88,1.68970976]
[1751997198435,2.26421435,661.48,660.88,1.68970976]
[1751997199432,2.26421435,661.5,660.87,1.68970976]
[1751997199634,2.26421435,661.49,660.87,1.68970976]
[1751997199835,2.26421435,661.6,660.79,1.68970976]
[1751997200736,2.26421435,661.59,660.79,1.68970976]
[1751997200932,2.26421435,661.57,660.77,1.68970976]
[1751997201337,2.26421435,661.56,660.78,1.68970976]
[1751997204237,2.26421435,661.56,660.77,1.68970976]
[1751997205339,2.26421435,661.56,660.78,1.68970976]
[1751997208540,2.26421435,661.58,660.76,1.68970976]
[1751997208740,2.26421435,661.49,660.75,1.68970976]
[1751997208935,2.26421435,661.42,660.72,1.68970976]
[1751997209435,2.26421435,661.43,660.71,1.68970976]
[1751997210342,2.26421435,661.43,660.7,1.68970976]
[1751997211438,2.26421435,661.44,660.7,1.68970976]
[1751997211843,2.26421435,661.43,660.7,1.68970976]
[1751997212642,2.26421435,661.44,660.7,1.68970976]
[1751997212839,2.26421435,661.44,660.68,1.68970976]
[1751997214546,2.26421435,661.45,660.68,1.68970976]
[1751997215246,2.26421435,661.44,660.69,1.68970976]
[1751997215446,2.26421435,661.44,660.69,2.463]
[1751997215945,2.26421435,661.42,660.72,1.68970976]
[1751997217247,2.26421435,661.49,660.79,1.68970976]
[1751997218650,2.26421435,661.48,660.8,1.68970976]
[1751997219153,2.26421435,661.47,660.8,1.68970976]
[1751997219355,2.26421435,661.48,660.83,1.68970976]
[1751997225659,2.26421435,661.42,660.88,1.68970976]
[1751997226863,1.69767935,661.31,660.88,1.68970976]
[1751997235363,1.69767935,661.32,660.88,1.68970976]
[1751997235564,1.69767935,661.31,660.88,1.68970976]
[1751997236467,1.69767935,661.32,660.88,1.68970976]
[1751997236968,1.69767935,661.31,660.88,1.68970976]
[1751997237270,1.69767935,661.32,660.87,1.68970976]
[1751997238367,1.69767935,661.32,660.76,2.2540106]
[1751997238368,1.69767935,661.33,660.85,1.68970976]
[1751997240667,1.69767935,661.33,660.69,2.463]
[1751997240668,1.69768818,661.36,660.8,1.69308732]
[1751997241872,1.69768818,661.37,660.81,1.69308732]
[1751997242269,1.69768818,661.37,660.8,1.69308732]
[1751997243368,1.69768818,661.37,660.81,1.69308732]
[1751997243573,1.69768818,661.38,660.79,1.69308732]
[1751997243875,1.69768818,661.38,660.78,1.69308732]
[1751997244776,1.69768818,661.41,660.82,1.69308732]
[1751997245876,1.69768818,661.44,660.78,1.69308732]
[1751997246077,1.69768818,661.46,660.75,1.69308732]
[1751997246277,1.69768818,661.47,660.74,1.69308732]
[1751997246581,1.69768818,661.48,660.75,1.69308732]
[1751997246777,1.69768818,661.48,660.74,1.69308732]
[1751997246978,1.69768818,661.48,660.75,1.69308732]
[1751997247181,1.69768818,661.47,660.77,1.69308732]
[1751997247379,1.69768818,661.47,660.69,2.463]
[1751997247380,1.69768818,661.45,660.8,1.69308732]
[1751997247577,1.69768818,661.44,660.83,1.69308732]
[1751997247878,1.69768818,661.43,660.83,1.69308732]
[1751997248382,1.69768818,661.44,660.83,1.69308732]
[1751997248582,1.69768818,661.43,660.83,1.69308732]
[1751997249080,1.69768818,661.44,660.82,1.69308732]
[1751997252487,0.26312705,661.83,660.84,1.69308732]
[1751997252488,1.69768818,661.46,660.84,1.69308732]
[1751997252688,1.69768818,661.48,660.85,1.69308732]
[1751997253384,1.69768818,661.48,660.69,2.463]
[1751997253385,1.69768818,661.49,660.83,1.69308732]
[1751997253686,1.69768818,661.5,660.81,1.69308732]
[1751997254287,1.69768818,661.51,660.81,1.69308732]
[1751997254484,1.69768818,661.58,660.88,1.69308732]
[1751997254889,1.69768818,661.64,660.94,1.69308732]
[1751997255590,1.69768818,661.63,660.96,1.69308732]
[1751997256793,1.69768818,661.63,660.95,1.69308732]
[1751997257391,1.69768818,661.64,660.95,1.69308732]
[1751997258593,1.69768818,661.63,660.94,1.69308732]
[1751997258794,1.69768818,661.64,660.93,1.69308732]
[1751997258995,1.69768818,661.64,660.92,1.69308732]
[1751997259498,1.69768818,661.65,660.92,1.69308732]
[1751997259996,1.69768818,661.65,660.93,2.099]
[1751997260292,1.69768818,661.64,660.93,2.099]
[1751997263300,1.69768818,661.65,660.93,2.099]
[1751997264696,1.69768818,661.54,660.93,2.099]
[1751997264995,1.69768818,661.53,660.93,2.099]
[1751997265400,1.69768818,661.54,660.93,2.099]
[1751997266198,1.69768818,661.53,660.93,2.099]
[1751997267602,1.69768818,661.49,660.93,2.099]
[1751997267997,1.69768818,661.51,660.93,2.099]
[1751997268903,1.69768818,661.5,660.93,2.099]
[1751997270399,1.69768818,661.49,660.93,2.099]
[1751997272800,1.69768818,661.41,660.93,2.099]
[1751997273206,1.69768818,661.4,660.93,2.099]
[1751997273402,1.69768818,661.39,660.93,2.099]
[1751997276804,0.26312705,661.83,660.93,2.099]
[1751997276805,1.69768818,661.38,660.93,2.099]
[1751997277005,1.69768818,661.37,660.93,2.099]
[1751997277304,1.69768818,661.36,660.93,2.099]
[1751997277509,1.69768818,661.35,660.93,2.099]
[1751997278310,1.69768818,661.36,660.93,2.099]
[1751997278509,1.69768818,661.35,660.93,2.099]
[1751997281109,1.69768818,661.36,660.93,2.099]
[1751997281909,1.69768818,661.35,660.93,2.099]
[1751997283416,1.69768818,661.36,660.93,2.099]
[1751997283915,1.69768818,661.35,660.93,2.099]
[1751997285416,1.69768818,661.36,660.93,2.099]
[1751997285913,1.69768818,661.43,660.93,2.099]
[1751997289215,1.69768818,661.42,660.93,2.099]
[1751997293222,2.26421435,661.6,660.93,2.099]
[1751997293523,1.69615348,661.42,660.93,2.099]
[1751997294323,1.69615348,661.36,660.93,2.099]
[1751997295726,1.69615348,661.32,660.93,2.099]
[1751997296425,1.69615348,661.31,660.93,2.099]
[1751997300630,1.69615348,661.32,660.93,2.099]
[1751997302226,1.69615348,661.33,660.93,2.099]
[1751997304027,0.26312705,661.83,660.93,2.099]
[1751997304028,1.69615348,661.37,660.93,2.099]
[1751997305230,1.69615348,661.38,660.93,2.099]
[1751997305432,1.69615348,661.4,660.93,2.099]
[1751997310138,1.69615348,661.41,660.93,2.099]
[1751997312440,1.69615348,661.4,660.93,2.099]
[1751997312937,1.69615348,661.41,660.93,2.099]
[1751997313439,1.69615348,661.4,660.93,2.099]
[1751997314339,1.69615348,661.41,660.93,2.099]
[1751997314638,1.69615348,661.4,660.93,2.099]
[1751997315340,2.26421435,661.55,660.93,2.099]
[1751997315341,1.69615348,661.39,660.93,2.099]
[1751997317441,1.69615348,661.38,660.93,2.099]
[1751997317643,1.69615348,661.37,660.93,2.099]
[1751997318744,1.69615348,661.36,660.93,2.099]
[1751997319142,1.69615348,661.37,660.93,2.099]
[1751997319440,1.69615348,661.36,660.93,2.099]
[1751997319841,0.26312705,661.83,660.93,2.099]
[1751997319842,1.69615348,661.34,660.93,2.099]
[1751997320042,1.69615348,661.33,660.81,1.69245628]
[1751997320246,1.69615348,661.35,660.79,1.69245628]
[1751997320545,1.69615348,661.34,660.79,1.69245628]
[1751997321347,1.69615348,661.34,660.8,1.69245628]
[1751997322342,1.69615348,661.33,660.8,1.69245628]
[1751997322749,1.69615348,661.34,660.8,1.69245628]
[1751997323350,1.69615348,661.33,660.81,1.69245628]
[1751997323849,1.69615348,661.33,660.82,2.237]
[1751997324351,1.69615348,661.32,660.82,3.92945628]
[1751997324851,1.69615348,661.33,660.82,3.92945628]
[1751997325552,1.69615348,661.33,660.83,1.69245628]
[1751997326348,1.69615348,661.32,660.84,1.69245628]
[1751997327052,1.69615348,661.32,660.83,1.69245628]
[1751997327349,1.69615348,661.31,660.84,1.69245628]
[1751997328051,1.69615348,661.31,660.83,1.69245628]
[1751997328351,1.69615348,661.3,660.84,1.69245628]
[1751997329953,1.69615348,661.3,660.83,1.69245628]
[1751997330250,1.69615348,661.29,660.85,1.69245628]
[1751997331054,1.69615348,661.28,660.84,1.69245628]
[1751997331452,1.69615348,661.28,660.85,1.69245628]
[1751997331955,1.69615348,661.27,660.85,1.69245628]
[1751997332553,1.69615348,661.27,660.82,2.237]
[1751997332554,1.69615348,661.27,660.86,1.69245628]
[1751997332854,1.69615348,661.26,660.87,1.69245628]
[1751997333752,1.69615348,661.26,660.86,1.69245628]
[1751997334453,1.69615348,661.27,660.85,1.69245628]
[1751997335957,1.69615348,661.28,660.84,1.69245628]
[1751997337758,1.69615348,661.27,660.84,1.69245628]
[1751997338058,1.69615348,661.32,660.82,2.237]
[1751997341264,1.69615348,661.31,660.82,2.237]
[1751997343264,1.69615348,661.28,660.82,2.237]
[1751997344364,1.69615348,661.24,660.82,2.237]
[1751997354174,1.69615348,661.22,660.83,1.69245628]
[1751997354877,1.69615348,661.25,660.86,1.69245628]
[1751997355877,1.69615348,661.24,660.86,1.69245628]
[1751997356378,1.69615348,661.24,660.82,2.237]
[1751997356379,1.69615348,661.19,660.82,2.237]
[1751997357476,1.69615348,661.2,660.82,2.237]
[1751997359380,1.69615348,661.21,660.82,2.237]
[1751997360684,1.69615348,661.22,660.82,2.237]
[1751997362082,1.69615348,661.18,660.82,2.237]
[1751997362382,1.69615348,661.19,660.82,2.237]
[1751997364484,1.69615348,661.2,660.82,2.237]
[1751997364784,1.69615348,661.17,660.82,2.237]
[1751997364983,1.69615348,661.17,660.69,1.69245628]
[1751997365281,1.69615348,661.18,660.69,1.69245628]
[1751997366483,1.69615348,661.18,660.68,1.69245628]
[1751997366781,1.69615348,661.18,660.69,1.69245628]
[1751997367782,1.69615348,661.18,660.7,2.406]
[1751997370587,1.69615348,661.19,660.7,4.09845628]
[1751997370784,1.69615348,661.21,660.73,1.69245628]
[1751997371689,1.69615348,661.2,660.74,1.69245628]
[1751997373487,1.69615348,661.23,660.77,1.69245628]
[1751997374586,1.69615348,661.24,660.78,1.69245628]
[1751997375487,1.69615348,661.24,660.77,1.69245628]
[1751997376589,1.69615348,661.24,660.76,1.69245628]
[1751997379190,1.69615348,661.27,660.72,1.69245628]
[1751997380491,1.69615348,661.23,660.71,0.26318078]
[1751997381592,1.69615348,661.24,660.71,0.26318078]
[1751997384000,1.69615348,661.23,660.71,0.26318078]
[1751997384300,1.69615348,661.24,660.71,0.26318078]
[1751997384495,1.69615348,661.23,660.71,0.26318078]
[1751997384697,1.69615348,661.22,660.71,0.26318078]
[1751997387399,1.69615348,661.21,660.71,0.26318078]
[1751997388597,1.69615348,661.22,660.71,0.26318078]
[1751997390904,1.69615348,661.23,660.71,0.26318078]
[1751997392010,1.69615348,661.24,660.71,0.26318078]
[1751997392410,1.69615348,661.23,660.71,0.26318078]
[1751997394408,1.69615348,661.14,660.71,0.26318078]
[1751997394610,1.69615348,661.17,660.71,0.26318078]
[1751997396411,1.69615348,661.18,660.71,0.26318078]
[1751997397315,1.69615348,661.17,660.71,0.26318078]
[1751997398411,1.69615348,661.16,660.71,0.26318078]
[1751997398612,1.69615348,661.1,660.71,0.26318078]
[1751997399312,1.69615348,661.11,660.71,0.26318078]
[1751997401312,1.69615348,661.12,660.71,0.26318078]
[1751997401615,1.69615348,661.11,660.71,0.26318078]
[1751997403617,1.69615348,661.1,660.71,0.26318078]
[1751997404517,1.69615348,661.11,660.71,0.26318078]
[1751997404812,1.69615348,661.07,660.71,0.26318078]
[1751997407215,1.69615348,661.06,660.71,0.26318078]
[1751997408719,1.69615348,661.07,660.71,0.26318078]
[1751997418524,1.69615348,661.06,660.71,0.26318078]
[1751997420030,2.26421435,661.17,660.71,0.26318078]
[1751997420324,1.69445356,661.06,660.71,0.26318078]
[1751997423826,1.69445356,661.07,660.71,0.26318078]
[1751997424324,1.69431704,661.07,660.71,0.26318078]
[1751997424726,1.69431704,661.09,660.71,0.26318078]
[1751997429127,1.69431704,661.09,660.72,2.269]
[1751997433329,1.69431704,661.12,660.72,2.269]
[1751997434332,1.69431704,661.11,660.72,2.269]
[1751997435329,1.69431704,661.1,660.72,2.269]
[1751997437533,1.69431704,661.06,660.72,2.269]
[1751997440132,1.69431704,661.07,660.72,2.269]
[1751997440637,1.69431704,661.06,660.72,2.269]
[1751997441134,1.69431704,661.08,660.72,2.269]
[1751997443238,1.69431704,661.07,660.72,2.269]
[1751997447536,1.69431704,661.06,660.72,2.269]
[1751997449541,1.69431704,661.05,660.72,2.269]
[1751997450037,1.69431704,661.04,660.72,2.269]
[1751997451138,1.69431704,661.06,660.72,2.269]
[1751997452138,1.69431704,661.05,660.72,2.269]
[1751997452344,1.69431704,661.04,660.72,2.269]
[1751997453441,1.69431704,661.03,660.72,2.269]
[1751997454445,1.69431704,661.02,660.72,2.269]
[1751997455445,1.69962382,661.02,660.72,2.269]
[1751997456947,1.69962382,661.01,660.72,2.269]
[1751997457748,1.69962382,661.0,660.72,2.269]
[1751997460747,1.69962382,660.95,660.72,2.269]
[1751997461250,0.26318078,661.6,660.72,2.269]
[1751997461251,1.69962382,660.93,660.72,2.269]
[1751997462550,1.69962382,660.92,660.72,2.269]
[1751997462949,1.69962382,660.95,660.72,2.269]
[1751997463653,1.69962382,661.03,660.72,2.269]
[1751997465257,1.69962382,661.05,660.71,0.26318078]
[1751997466357,1.69962382,661.06,660.71,0.26318078]
[1751997467959,1.69962382,661.06,660.72,1.863]
[1751997474961,1.69962382,661.03,660.72,1.863]
[1751997482474,1.69962382,661.02,660.72,1.863]
[1751997483974,1.69962382,661.03,660.72,1.863]
[1751997485676,1.69962382,661.02,660.72,1.863]
[1751997485870,1.69962382,661.0,660.72,1.863]
[1751997486676,2.26421435,661.13,660.72,1.863]
[1751997486677,1.69962382,660.99,660.72,1.863]
[1751997486976,1.69962382,660.99,660.71,0.26318078]
[1751997487372,1.69962382,661.0,660.71,0.26318078]
[1751997488378,1.69962382,660.99,660.71,0.26318078]
[1751997489479,1.69962382,661.0,660.71,0.26318078]
[1751997490276,1.69962382,660.99,660.71,0.26318078]
[1751997490976,1.69962382,660.99,660.72,1.798]
[1751997492482,1.69962382,660.98,660.72,1.798]
[1751997493482,1.69962382,660.94,660.72,1.798]
[1751997493681,1.69962382,660.93,660.72,1.798]
[1751997494677,1.69962382,660.96,660.72,1.798]
[1751997495679,1.69962382,660.95,660.72,1.798]
[1751997497185,1.69962382,660.96,660.72,1.798]
[1751997497582,1.69962382,660.97,660.72,1.798]
[1751997500081,1.69962382,660.96,660.72,1.798]
[1751997500285,1.69962382,660.97,660.72,1.798]
[1751997501982,1.69962382,660.98,660.72,1.798]
[1751997504685,1.69962382,660.96,660.72,1.798]
[1751997505489,1.69962382,660.99,660.72,1.798]
[1751997505684,1.69962382,660.98,660.72,1.798]
[1751997506289,1.69962382,660.99,660.72,1.798]
[1751997507689,1.69962382,661.0,660.72,1.798]
[1751997515493,1.69962382,660.98,660.72,1.798]
[1751997516494,3.40221711,661.29,660.72,1.798]
[1751997516495,1.69962382,660.96,660.72,1.798]
[1751997517194,1.69962382,660.97,660.72,1.798]
[1751997517598,1.69962382,660.95,660.72,1.798]
[1751997520996,1.69962382,661.01,660.72,1.798]
[1751997524099,1.69962382,661.0,660.72,1.798]
[1751997528309,1.69962382,660.99,660.72,1.798]
[1751997530709,1.69962382,660.94,660.72,1.798]
[1751997532114,1.69962382,660.93,660.72,1.798]
[1751997532414,1.69962382,660.94,660.72,1.798]
[1751997535915,1.69962382,660.94,660.71,0.26318078]
[1751997537110,1.69962382,660.95,660.71,0.26318078]
[1751997537309,1.69962382,660.94,660.71,0.26318078]
[1751997538717,1.69962382,660.92,660.71,0.26318078]
[1751997539513,1.69962382,660.92,660.72,2.236]
[1751997541614,1.69962382,660.91,660.72,2.236]
[1751997541917,1.69962382,660.92,660.72,2.236]
[1751997542314,1.69962382,660.91,660.72,2.236]
[1751997543316,1.69962382,660.9,660.72,2.236]
[1751997544318,1.69962382,660.89,660.72,2.236]
[1751997544520,1.69962382,660.9,660.72,2.236]
[1751997546723,1.69962382,660.89,660.72,2.236]
[1751997547127,1.69962382,660.88,660.72,2.236]
[1751997547326,1.69962382,660.89,660.72,2.236]
[1751997547525,1.69962382,660.88,660.72,2.236]
[1751997550428,1.69962382,660.87,660.72,2.236]
[1751997552430,1.69962382,660.86,660.72,2.236]
[1751997553329,2.26421435,660.97,660.72,2.236]
[1751997553529,1.70116022,660.85,660.72,2.236]
[1751997554428,1.70116022,661.0,660.72,2.236]
[1751997554632,1.70116022,661.01,660.72,2.236]
[1751997555233,1.70116022,661.0,660.72,2.236]
[1751997555532,1.70116022,661.01,660.72,2.236]
[1751997557638,1.70116022,660.95,660.72,2.236]
[1751997557934,1.70116022,660.92,660.72,2.236]
[1751997558132,1.70116022,660.86,660.72,2.236]
[1751997558334,1.70116022,660.89,660.72,2.236]
[1751997559332,0.26318078,661.6,660.72,2.236]
[1751997559333,1.70116022,660.9,660.72,2.236]
[1751997560233,1.70116022,660.79,660.72,2.236]
[1751997560438,1.70116022,660.8,660.72,2.236]
[1751997561433,1.70116022,660.81,660.72,2.236]
[1751997561637,1.70116022,660.76,660.72,2.236]
[1751997562537,1.70116022,660.77,660.72,2.236]
[1751997563437,1.70116022,660.78,660.72,2.236]
[1751997565538,3.40221711,661.03,660.72,2.236]
[1751997565539,1.70116022,660.79,660.72,2.236]
[1751997567138,1.70116022,660.78,660.72,2.236]
[1751997567339,1.69571347,660.73,660.72,2.236]
[1751997568238,0.26318078,661.6,660.72,2.236]
[1751997568433,2.79355349,661.59,660.72,2.236]
[1751997568638,2.79355349,661.58,660.72,2.236]
[1751997568838,2.79355349,661.57,660.72,2.236]
[1751997569135,1.69565916,660.74,660.72,2.236]
[1751997570038,1.69565916,660.73,660.72,2.236]
[1751997570534,1.69565916,660.74,660.72,2.236]
[1751997572441,1.69565916,660.75,660.72,2.236]
[1751997573237,1.69565916,660.76,660.72,2.236]
[1751997573541,1.69565916,660.77,660.72,2.236]
[1751997576445,1.69565916,660.78,660.72,2.236]
[1751997576840,2.26087888,660.88,660.72,2.236]
[1751997576841,1.69565916,660.77,660.72,2.236]
[1751997577245,1.69565916,660.78,660.72,2.236]
[1751997585452,1.69565916,660.79,660.72,2.236]
[1751997596461,1.69565916,660.78,660.72,2.236]
[1751997597961,1.69565916,660.79,660.72,2.236]
[1751997599465,1.69565916,660.78,660.37,0.26333214]
[1751997600765,1.69565916,660.79,660.37,0.26333214]
[1751997601464,1.69565916,660.78,660.37,0.26333214]
[1751997601869,1.69565916,660.96,660.37,0.26333214]
[1751997602369,1.69565916,661.05,660.37,0.26333214]
[1751997602668,1.69565916,661.01,660.37,0.26333214]
[1751997602863,5.65219721,662.28,660.38,2.706]
[1751997602864,1.69565916,661.09,660.38,2.706]
[1751997603266,1.69565916,661.12,660.38,2.706]
[1751997603668,2.26087888,661.36,660.38,2.706]
[1751997603669,1.69565916,661.13,660.38,2.706]
[1751997603871,1.69565916,661.12,660.38,2.706]
[1751997604071,1.69565916,661.13,660.38,2.706]
[1751997604367,1.69565916,661.12,660.38,2.706]
[1751997605372,1.69565916,661.11,660.38,2.706]
[1751997605669,2.26087888,661.34,660.38,2.706]
[1751997605869,1.69462856,661.12,660.38,2.706]
[1751997606071,1.69462856,661.03,660.38,2.706]
[1751997606374,1.69462856,661.13,660.38,2.706]
[1751997606572,1.69462856,661.12,660.38,2.706]
[1751997606772,1.69462856,661.13,660.38,2.706]
[1751997606971,1.69462856,661.14,660.38,2.706]
[1751997607175,1.69462856,661.15,660.38,2.706]
[1751997608471,3.39131833,661.67,660.83,1.69508755]
[1751997608672,1.69462856,661.82,660.83,1.69508755]
[1751997609076,1.69462856,661.79,660.81,1.69508755]
[1751997609373,1.69462856,661.83,660.75,1.69508755]
[1751997609573,1.69462856,661.82,660.75,1.69508755]
[1751997609777,1.69462856,661.84,660.73,1.69508755]
[1751997610074,1.69462856,661.86,660.75,1.69508755]
[1751997610274,1.69462856,661.84,660.77,1.69508755]
[1751997610677,1.69462856,661.87,660.71,1.69508755]
[1751997611174,1.69462856,661.86,660.73,1.69508755]
[1751997611373,1.69462856,661.86,660.48,2.26233642]
[1751997611374,1.69462856,661.88,660.69,1.69508755]
[1751997611974,1.69462856,661.89,660.7,1.69508755]
[1751997612379,0.26316785,662.0,660.82,1.69508755]
[1751997613483,0.26316785,662.0,660.77,1.69508755]
[1751997613678,0.26316785,662.0,660.78,1.69508755]
[1751997613977,0.26316785,662.0,660.84,1.69508755]
[1751997614181,0.26316785,662.0,660.93,1.69508755]
[1751997614583,0.26316785,662.0,660.89,1.69508755]
[1751997614879,0.26316785,662.0,660.98,1.69508755]
[1751997615183,0.26316785,662.0,660.93,1.69508755]
[1751997615483,0.26316785,662.0,660.82,1.69508755]
[1751997616385,0.26316785,662.0,660.8,1.69508755]
[1751997616585,0.26316785,662.0,660.87,1.69508755]
[1751997616784,0.26316785,662.0,660.88,1.69508755]
[1751997617284,0.26316785,662.0,660.89,1.69508755]
[1751997617581,0.26316785,662.0,660.86,1.69508755]
[1751997617982,0.26316785,662.0,660.85,1.69508755]
[1751997618686,0.26316785,662.0,660.84,1.69508755]
[1751997619687,0.26316785,662.0,660.78,1.69508755]
[1751997619887,0.26316785,662.0,660.77,1.69508755]
[1751997620485,0.26316785,662.0,660.73,1.69508755]
[1751997620690,0.26316785,662.0,660.71,1.69508755]
[1751997620888,0.26316785,662.0,660.7,1.69508755]
[1751997621291,0.26316785,662.0,660.69,1.69508755]
[1751997621587,0.26316785,662.0,660.67,1.69508755]
[1751997621790,0.26316785,662.0,660.66,1.69508755]
[1751997622188,0.26316785,662.0,660.64,1.69508755]
[1751997622390,0.26316785,662.0,660.52,2.26233642]
[1751997622391,0.26316785,662.0,660.63,1.69508755]
[1751997622890,0.26316785,662.0,660.38,6.09950463]
[1751997622891,0.26316785,662.0,660.62,1.69508755]
[1751997623690,0.26316785,662.0,660.59,1.69508755]
[1751997623993,1.69462856,661.99,660.58,1.69508755]
[1751997624493,0.26316785,662.0,660.58,1.69508755]
[1751997624691,1.95779641,662.0,660.58,1.69508755]
[1751997624894,1.69462856,661.97,660.54,1.69508755]
[1751997625594,1.69462856,661.98,660.54,1.69508755]
[1751997625794,1.69462856,661.98,660.53,1.69508755]
[1751997627389,1.69462856,661.99,660.53,1.69508755]
[1751997627594,1.69462856,661.99,660.52,1.69508755]
[1751997627890,1.69462856,661.98,660.53,1.69508755]
[1751997628294,1.69462856,661.99,660.52,1.69508755]
[1751997628594,1.95779641,662.0,660.51,1.69508755]
[1751997630595,1.95779641,662.0,660.5,1.69508755]
[1751997630793,0.26316785,662.0,660.48,1.69508755]
[1751997631898,0.26316785,662.0,660.5,1.69508755]
[1751997632193,1.69462856,661.99,660.53,1.69508755]
[1751997632396,1.69462856,661.99,660.52,1.69508755]
[1751997632791,1.95779641,662.0,660.51,1.69508755]
[1751997633495,1.69462856,661.99,660.5,1.69508755]
[1751997633898,0.26316785,662.0,660.4,1.69508755]
[1751997634504,0.26316785,662.0,660.41,1.69508755]
[1751997635196,1.69462856,661.98,660.52,1.69508755]
[1751997635697,1.69462856,661.99,660.53,1.69508755]
[1751997636501,1.69462856,661.98,660.54,1.69508755]
[1751997636800,1.69462856,661.99,660.53,1.69508755]
[1751997637697,1.69462856,661.98,660.53,1.69508755]
[1751997638100,1.69462856,661.98,660.38,2.706]
[1751997638101,1.95779641,662.0,660.51,1.69508755]
[1751997638300,1.95779641,662.0,660.5,1.69508755]
[1751997639699,0.26316785,662.0,660.5,1.69508755]
[1751997640500,0.26316785,662.0,660.37,0.26333214]
[1751997640801,0.26316785,662.0,660.49,1.66970915]
[1751997641504,0.26316785,662.0,660.46,1.66970915]
[1751997642003,0.26316785,662.0,660.37,0.26333214]
[1751997642004,0.26316785,662.0,660.49,1.66970915]
[1751997642203,0.26316785,662.0,660.47,1.596]
[1751997644903,0.26316785,662.0,660.47,3.26570915]
[1751997645601,0.26316785,662.0,660.48,1.66970915]
[1751997646405,0.26316785,662.0,660.49,1.66970915]
[1751997647104,0.26316785,662.0,660.5,1.66970915]
[1751997647306,0.26316785,662.0,660.51,1.66970915]
[1751997649309,0.26316785,662.0,660.52,1.66970915]
[1751997650014,0.26316785,662.0,660.54,1.66970915]
[1751997650413,0.26316785,662.0,660.55,1.66970915]
[1751997650814,0.26316785,662.0,660.56,1.66970915]
[1751997651416,0.26316785,662.0,660.57,1.66970915]
[1751997652515,0.26316785,662.0,660.6,1.66970915]
[1751997652715,0.26316785,662.0,660.61,1.66970915]
[1751997653613,1.93504132,662.0,660.62,1.66970915]
[1751997653917,1.67187347,661.99,660.63,1.66970915]
[1751997654414,1.67187347,661.98,660.64,1.66970915]
[1751997654817,1.67187347,661.97,660.63,1.66970915]
[1751997655617,0.26316785,662.0,660.47,1.596]
[1751997655618,1.67187347,661.95,660.65,1.66970915]
[1751997656214,1.67187347,661.94,660.66,1.66970915]
[1751997656415,1.67187347,661.93,660.68,1.66970915]
[1751997657418,1.67187347,661.91,660.69,1.66970915]
[1751997658316,1.67187347,661.9,660.71,1.66970915]
[1751997658522,1.67187347,661.89,660.71,1.66970915]
[1751997659022,1.67187347,661.89,660.72,1.66970915]
[1751997659619,1.67187347,661.87,660.74,1.66970915]
[1751997661219,1.67187347,661.86,660.74,1.66970915]
[1751997661520,1.67187347,661.85,660.76,1.66970915]
[1751997661718,1.67187347,661.83,660.79,1.66970915]
[1751997662416,1.67187347,661.84,660.79,1.66970915]
[1751997662620,1.67187347,661.82,660.82,1.66970915]
[1751997663024,1.67187347,661.82,660.81,1.66970915]
[1751997663323,1.67187347,661.8,660.84,1.66970915]
[1751997663517,1.67187347,661.79,660.85,1.66970915]
[1751997663922,1.67187347,661.78,660.86,1.66970915]
[1751997664621,1.67187347,661.76,660.89,1.66970915]
[1751997664917,1.67187347,661.77,660.88,1.66970915]
[1751997665116,1.67187347,661.78,660.87,1.66970915]
[1751997665517,1.67187347,661.75,660.91,1.66970915]
[1751997666518,1.67187347,661.72,660.96,1.66970915]
[1751997667420,1.67187347,661.69,661.01,1.66970915]
[1751997668523,1.67187347,661.63,661.08,1.66970915]
[1751997669123,1.67187347,661.63,661.09,1.66970915]
[1751997669323,1.67187347,661.63,661.08,1.66970915]
[1751997670224,1.67187347,661.63,661.09,1.66970915]